[Event "Djerba Festival Blitz 2025"]
[Site "Djerba"]
[Date "2025.02.21"]
[Round "8.10"]
[White "Dejardin, Gregoire"]
[Black "Boudriga, Mohamed Ali"]
[Result "0-1"]
[ECO "A30"]
[WhiteElo "1932"]
[BlackElo "2323"]
[PlyCount "94"]
[EventDate "2025.02.15"]
[EventType "swiss"]
[EventCountry "TUN"]
[TimeControl "180+3"]

1. Nf3 {[%emt 0:00:04]} Nf6 {[%emt 0:00:06]} 2. b3 {[%emt 0:00:02]} e6 {[%emt 0:00:13]} 3. Bb2 {[%emt 0:00:02]} b6 {[%emt 0:00:02]} 4. g3 {[%emt 0:00:02]} Bb7 {[%emt 0:00:02]} 5. Bg2 {[%emt 0:00:02]} Be7 {[%emt 0:00:06]} 6. O-O {[%emt 0:00:03]} O-O {[%emt 0:00:04]} 7. c4 {[%emt 0:00:03]} c5 {[%emt 0:00:04]} 8. d4 {[%emt 0:00:07]} cxd4 {[%emt 0:00:02]} 9. Nxd4 {[%emt 0:00:04]} Bxg2 10. Kxg2 {[%emt 0:00:02]} Qc8 {[%emt 0:00:05]} 11. f3 {[%emt 0:00:11]} d5 {[%emt 0:00:16]} 12. Nd2 {[%emt 0:00:11]} Rd8 {[%emt 0:00:03]} 13. cxd5 {[%emt 0:00:09]} Nxd5 {[%emt 0:00:05]} 14. Nc4 {[%emt 0:00:12]} Qb7 {[%emt 0:01:34]} 15. e4 {[%emt 0:00:10]} Nb4 {[%emt 0:00:06]} 16. Qe2 {[%emt 0:00:24]} N8c6 {[%emt 0:00:08]} 17. Nxc6 {[%emt 0:00:05]} Nxc6 {[%emt 0:00:03]} 18. Rfd1 {[%emt 0:00:06]} Bc5 {[%emt 0:00:13]} 19. Rxd8+ Rxd8 {[%emt 0:00:02]} 20. Rd1 {[%emt 0:00:10]} Qc8 {[%emt 0:00:21]} 21. Rxd8+ {[%emt 0:00:17]} Qxd8 {[%emt 0:00:03]} 22. Qd2 {[%emt 0:00:01]} Qxd2+ {[%emt 0:00:05]} 23. Nxd2 {[%emt 0:00:02]} Nb4 {[%emt 0:00:02]} 24. a4 {[%emt 0:00:14]} Nd3 {[%emt 0:00:06]} 25. Bc3 {[%emt 0:00:09]} Be3 {[%emt 0:00:21]} 26. Nc4 {[%emt 0:00:04]} Bc5 {[%emt 0:00:02]} 27. Kf1 {[%emt 0:00:13]} Nc1 {[%emt 0:00:02]} 28. Nd2 {[%emt 0:00:10]} Be3 {[%emt 0:00:02]} 29. Nc4 {[%emt 0:00:11]} Bc5 {[%emt 0:00:02]} 30. b4 {[%emt 0:00:08]} Bf8 {[%emt 0:00:04]} 31. a5 {[%emt 0:00:09]} b5 {[%emt 0:00:03]} 32. Na3 {[%emt 0:00:05]} a6 {[%emt 0:00:04]} 33. Nxb5 {[%emt 0:00:06]} Na2 {[%emt 0:00:05]} 34. Bd2 {[%emt 0:00:07]} Nxb4 {[%emt 0:00:06]} 35. Bxb4 {[%emt 0:00:03]} Bxb4 {[%emt 0:00:02]} 36. Nc7 {[%emt 0:00:03]} Bxa5 {[%emt 0:00:02]} 37. Nxa6 {[%emt 0:00:43]} Bb6 {[%emt 0:00:03]} 38. Ke2 {[%emt 0:00:00]} Kf8 {[%emt 0:00:04]} 39. Nb4 {[%emt 0:00:00]} Ke8 {[%emt 0:00:02]} 40. h4 {[%emt 0:00:00]} h5 {[%emt 0:00:03]} 41. g4 {[%emt 0:00:00]} Bd8 {[%emt 0:00:05]} 42. g5 {[%emt 0:00:00]} g6 {[%emt 0:00:02]} 43. Nd3 {[%emt 0:00:00]} Bc7 {[%emt 0:00:02]} 44. Kf2 {[%emt 0:00:00]} Kd7 {[%emt 0:00:02]} 45. Ne1 {[%emt 0:00:00]} Kc6 {[%emt 0:00:09]} 46. Ng2 {[%emt 0:00:00]} Kb5 {[%emt 0:00:00]} 47. Ke3 {[%emt 0:00:00]} Kc4 {[%emt 0:00:00]} 0-1

[Event "Djerba Festival Blitz 2025"]
[Site "Djerba"]
[Date "2025.02.21"]
[Round "8.11"]
[White "Amdouni, Zoubaier"]
[Black "Minde, Baptiste"]
[Result "1-0"]
[ECO "C01"]
[WhiteElo "2229"]
[BlackElo "1896"]
[PlyCount "57"]
[EventDate "2025.02.15"]
[EventType "swiss"]
[EventCountry "TUN"]
[TimeControl "180+3"]

1. e4 {[%emt 0:00:04]} e6 {[%emt 0:00:03]} 2. d4 {[%emt 0:00:04]} d5 {[%emt 0:00:01]} 3. Bd3 {[%emt 0:00:01]} c5 {[%emt 0:00:04]} 4. exd5 {[%emt 0:00:07]} exd5 {[%emt 0:00:02]} 5. Nf3 {[%emt 0:00:07]} Nf6 {[%emt 0:00:07]} 6. O-O {[%emt 0:00:04]} c4 {[%emt 0:00:10]} 7. Be2 {[%emt 0:00:07]} Be7 {[%emt 0:00:13]} 8. b3 {[%emt 0:00:02]} cxb3 {[%emt 0:00:07]} 9. axb3 {[%emt 0:00:02]} O-O {[%emt 0:00:04]} 10. c4 {[%emt 0:00:03]} Nc6 {[%emt 0:00:09]} 11. h3 {[%emt 0:00:17]} Bf5 {[%emt 0:00:06]} 12. Nc3 {[%emt 0:00:13]} Re8 {[%emt 0:00:10]} 13. Bg5 {[%emt 0:00:12]} Nb4 {[%emt 0:00:31]} 14. Ra4 {[%emt 0:00:14]} Bc2 {[%emt 0:00:09]} 15. Qa1 {[%emt 0:00:22]} Bxb3 {[%emt 0:00:10]} 16. Bxf6 {[%emt 0:00:26]} Nc2 {[%emt 0:00:18]} 17. Bxe7 {[%emt 0:00:11]} Qxe7 {[%emt 0:00:21]} 18. Qb2 {[%emt 0:00:40]} Bxa4 {[%emt 0:00:03]} 19. Bd1 {[%emt 0:00:02]} Nxd4 {[%emt 0:01:00]} 20. Nxd4 {[%emt 0:00:11]} Bxd1 {[%emt 0:00:03]} 21. Nxd5 {[%emt 0:00:06]} Qc5 {[%emt 0:00:08]} 22. Rxd1 {[%emt 0:00:03]} Rad8 {[%emt 0:00:03]} 23. Ne3 {[%emt 0:00:08]} b6 {[%emt 0:00:03]} 24. Qc3 {[%emt 0:00:10]} a5 {[%emt 0:00:03]} 25. g3 {[%emt 0:00:08]} g6 {[%emt 0:00:02]} 26. Ng4 {[%emt 0:00:06]} Re4 {[%emt 0:00:06]} 27. Nf6+ {[%emt 0:00:02]} Kg7 {[%emt 0:00:01]} 28. Nxe4 {[%emt 0:00:03]} a4 {[%emt 0:00:03]} 29. Nxc5 {[%emt 0:00:02]} 1-0

[Event "Djerba Festival Blitz 2025"]
[Site "Djerba"]
[Date "2025.02.21"]
[Round "8.12"]
[White "Gemelli, Romain"]
[Black "Doucet, Pierre-Alois"]
[Result "1-0"]
[ECO "A03"]
[WhiteElo "2203"]
[BlackElo "2027"]
[PlyCount "71"]
[EventDate "2025.02.15"]
[EventType "swiss"]
[EventCountry "TUN"]
[TimeControl "180+3"]

1. b3 {[%emt 0:00:03]} d5 {[%emt 0:00:06]} 2. Bb2 {[%emt 0:00:02]} c5 {[%emt 0:00:01]} 3. e3 {[%emt 0:00:01]} Nc6 {[%emt 0:00:02]} 4. Bb5 {[%emt 0:00:02]} Bd7 {[%emt 0:00:04]} 5. f4 {[%emt 0:00:04]} e6 {[%emt 0:00:05]} 6. Nf3 {[%emt 0:00:03]} Nf6 {[%emt 0:00:02]} 7. O-O {[%emt 0:00:03]} Bd6 {[%emt 0:00:03]} 8. d3 {[%emt 0:00:04]} a6 {[%emt 0:00:02]} 9. Bxc6 {[%emt 0:00:03]} Bxc6 {[%emt 0:00:02]} 10. Ne5 {[%emt 0:00:07]} Qc7 {[%emt 0:00:02]} 11. Nd2 {[%emt 0:00:03]} O-O-O {[%emt 0:00:43]} 12. Ndf3 {[%emt 0:00:14]} Be8 {[%emt 0:02:27]} 13. c4 {[%emt 0:00:09]} dxc4 {[%emt 0:00:00]} 14. bxc4 {[%emt 0:00:04]} h6 {[%emt 0:00:00]} 15. Qb3 {[%emt 0:00:27]} Rg8 {[%emt 0:00:00]} 16. d4 {[%emt 0:00:15]} Nd7 {[%emt 0:00:12]} 17. Rab1 {[%emt 0:00:14]} g5 {[%emt 0:00:03]} 18. Bc3 {[%emt 0:01:59]} f6 {[%emt 0:00:00]} 19. Ba5 {[%emt 0:00:00]} b6 20. Nxd7 {[%emt 0:00:06]} bxa5 {[%emt 0:00:09]} 21. Nxf6 {[%emt 0:00:00]} Bg6 {[%emt 0:00:00]} 22. Nxg8 {[%emt 0:00:00]} Bxb1 {[%emt 0:00:00]} 23. Rxb1 {[%emt 0:00:00]} Rxg8 {[%emt 0:00:00]} 24. fxg5 {[%emt 0:00:00]} cxd4 {[%emt 0:00:00]} 25. exd4 {[%emt 0:00:00]} hxg5 {[%emt 0:00:15]} 26. Qb6 {[%emt 0:00:00]} g4 {[%emt 0:00:00]} 27. Qxa6+ {[%emt 0:00:00]} Kd8 {[%emt 0:00:00]} 28. Rb7 {[%emt 0:00:00]} gxf3 {[%emt 0:00:00]} 29. Rxc7 {[%emt 0:00:00]} Rxg2+ {[%emt 0:00:00]} 30. Kf1 {[%emt 0:00:00]} Kxc7 {[%emt 0:00:03]} 31. Qa7+ {[%emt 0:00:00]} Kd8 {[%emt 0:00:15]} 32. Qa8+ {[%emt 0:00:00]} Ke7 {[%emt 0:00:00]} 33. Qxf3 {[%emt 0:00:00]} Rxh2 {[%emt 0:00:00]} 34. Qb7+ {[%emt 0:00:00]} Kf6 {[%emt 0:00:00]} 35. c5 {[%emt 0:00:00]} Rh1+ 36. Qxh1 {[%emt 0:00:00]} 1-0

[Event "Djerba Festival Blitz 2025"]
[Site "Djerba"]
[Date "2025.02.21"]
[Round "8.14"]
[White "Zouaghi, Ahmed"]
[Black "Achour, Mohamed Anis"]
[Result "0-1"]
[ECO "C45"]
[WhiteElo "1919"]
[BlackElo "2066"]
[PlyCount "72"]
[EventDate "2025.02.15"]
[EventType "swiss"]
[EventCountry "TUN"]
[TimeControl "180+3"]

1. e4 {[%emt 0:00:04]} e5 {[%emt 0:00:04]} 2. Nf3 {[%emt 0:00:01]} Nc6 {[%emt 0:00:02]} 3. d4 {[%emt 0:00:02]} exd4 {[%emt 0:00:02]} 4. Nxd4 {[%emt 0:00:01]} Nf6 {[%emt 0:00:02]} 5. Nxc6 {[%emt 0:00:03]} bxc6 {[%emt 0:00:02]} 6. Nd2 {[%emt 0:00:02]} d6 {[%emt 0:00:13]} 7. Bd3 {[%emt 0:00:08]} Be7 {[%emt 0:00:02]} 8. O-O {[%emt 0:00:03]} O-O {[%emt 0:00:03]} 9. b3 {[%emt 0:00:06]} Nd7 {[%emt 0:00:04]} 10. Bb2 {[%emt 0:00:02]} Nc5 {[%emt 0:00:02]} 11. Be2 {[%emt 0:00:30]} Bf6 {[%emt 0:00:03]} 12. Bxf6 Qxf6 {[%emt 0:00:02]} 13. Kh1 {[%emt 0:00:37]} a5 {[%emt 0:00:03]} 14. a4 {[%emt 0:00:03]} Re8 {[%emt 0:00:03]} 15. f3 {[%emt 0:00:06]} Ne6 {[%emt 0:03:01]} 16. Nc4 {[%emt 0:00:10]} Nf4 {[%emt 0:00:03]} 17. Ne3 {[%emt 0:00:40]} Nxe2 {[%emt 0:00:00]} 18. Qxe2 {[%emt 0:00:02]} Ba6 {[%emt 0:00:00]} 19. c4 {[%emt 0:00:06]} d5 {[%emt 0:00:00]} 20. Ng4 {[%emt 0:00:07]} Qc3 {[%emt 0:00:00]} 21. Rab1 {[%emt 0:00:19]} dxc4 {[%emt 0:00:00]} 22. Rfc1 {[%emt 0:00:02]} cxb3 {[%emt 0:00:00]} 23. Rxc3 {[%emt 0:00:10]} Bxe2 {[%emt 0:00:00]} 24. Rbxb3 {[%emt 0:00:08]} Red8 {[%emt 0:00:00]} 25. h3 {[%emt 0:00:08]} Rd1+ {[%emt 0:00:00]} 26. Kh2 {[%emt 0:00:01]} Rd2 {[%emt 0:00:00]} 27. Rxc6 {[%emt 0:00:07]} Bd1 {[%emt 0:00:00]} 28. Ra3 {[%emt 0:00:22]} h5 {[%emt 0:00:00]} 29. Ne3 {[%emt 0:00:03]} Bxf3 {[%emt 0:00:00]} 30. Rxc7 {[%emt 0:00:02]} Bxe4 {[%emt 0:00:00]} 31. Kg3 {[%emt 0:00:03]} g5 {[%emt 0:00:00]} 32. Rc4 {[%emt 0:00:12]} f5 {[%emt 0:00:00]} 33. Rc7 {[%emt 0:00:02]} f4+ {[%emt 0:00:00]} 34. Kh2 {[%emt 0:00:04]} fxe3 {[%emt 0:00:00]} 35. Rxe3 {[%emt 0:00:09]} Rxg2+ {[%emt 0:00:00]} 36. Kh1 {[%emt 0:00:01]} Re2+ {[%emt 0:01:00]} 0-1

[Event "Djerba Festival Blitz 2025"]
[Site "Djerba"]
[Date "2025.02.21"]
[Round "8.15"]
[White "Messala, Noureddine"]
[Black "Bensadi, Lotfi"]
[Result "1-0"]
[ECO "E11"]
[WhiteElo "2069"]
[BlackElo "1971"]
[PlyCount "108"]
[EventDate "2025.02.15"]
[EventType "swiss"]
[EventCountry "TUN"]
[TimeControl "180+3"]

1. d4 {[%emt 0:03:06]} Nf6 {[%emt 0:03:06]} 2. Nf3 {[%emt 0:00:03]} e6 {[%emt 0:00:03]} 3. c4 {[%emt 0:00:03]} Bb4+ {[%emt 0:00:03]} 4. Bd2 {[%emt 0:00:03]} Qe7 {[%emt 0:00:03]} 5. a3 {[%emt 0:00:03]} Bxd2+ {[%emt 0:00:03]} 6. Nbxd2 {[%emt 0:00:03]} d6 {[%emt 0:00:03]} 7. e3 b6 {[%emt 0:00:03]} 8. Bd3 {[%emt 0:00:06]} Bb7 {[%emt 0:00:03]} 9. Qc2 {[%emt 0:00:03]} Nbd7 {[%emt 0:00:03]} 10. O-O {[%emt 0:00:03]} a5 {[%emt 0:00:03]} 11. b4 {[%emt 0:00:03]} O-O {[%emt 0:00:03]} 12. Ne4 {[%emt 0:00:03]} e5 {[%emt 0:00:03]} 13. d5 {[%emt 0:00:03]} Nxe4 {[%emt 0:00:03]} 14. Bxe4 {[%emt 0:00:03]} g6 15. Bd3 {[%emt 0:00:03]} f5 {[%emt 0:00:06]} 16. e4 {[%emt 0:00:03]} f4 17. Nd2 {[%emt 0:00:03]} Kh8 {[%emt 0:00:06]} 18. Nb3 {[%emt 0:00:03]} a4 {[%emt 0:00:03]} 19. Nd2 Nf6 {[%emt 0:00:03]} 20. c5 {[%emt 0:00:06]} g5 {[%emt 0:00:03]} 21. cxd6 {[%emt 0:00:03]} cxd6 22. Nc4 {[%emt 0:00:03]} Qd8 {[%emt 0:00:06]} 23. f3 {[%emt 0:00:03]} Ba6 {[%emt 0:00:03]} 24. Qe2 {[%emt 0:00:03]} Bxc4 {[%emt 0:00:03]} 25. Bxc4 {[%emt 0:00:03]} Rg8 {[%emt 0:00:03]} 26. Bb5 {[%emt 0:00:03]} g4 {[%emt 0:00:03]} 27. Kh1 Qf8 {[%emt 0:00:03]} 28. Rac1 {[%emt 0:00:06]} Rc8 {[%emt 0:00:03]} 29. Rc6 {[%emt 0:00:03]} Rxc6 {[%emt 0:00:03]} 30. dxc6 {[%emt 0:00:03]} Ne8 {[%emt 0:00:03]} 31. Bxa4 {[%emt 0:00:03]} Nc7 {[%emt 0:00:03]} 32. Bb3 {[%emt 0:00:03]} Rg5 {[%emt 0:00:03]} 33. fxg4 {[%emt 0:00:03]} Qg7 {[%emt 0:00:03]} 34. h3 {[%emt 0:00:03]} h5 {[%emt 0:00:03]} 35. Bd1 {[%emt 0:00:03]} hxg4 {[%emt 0:00:03]} 36. hxg4 {[%emt 0:00:03]} Ne8 {[%emt 0:00:03]} 37. Rf3 {[%emt 0:00:03]} Nf6 {[%emt 0:00:03]} 38. Rh3+ Kg8 39. Bb3+ {[%emt 0:00:06]} Kf8 40. Qa6 {[%emt 0:00:03]} Rxg4 {[%emt 0:00:09]} 41. Qc8+ {[%emt 0:00:03]} Ne8 {[%emt 0:00:03]} 42. Qe6 {[%emt 0:00:03]} Rxg2 {[%emt 0:00:03]} 43. Qf5+ {[%emt 0:00:03]} Ke7 44. Qe6+ {[%emt 0:00:03]} Kf8 {[%emt 0:00:06]} 45. Qf5+ {[%emt 0:00:03]} Ke7 46. Rh7 {[%emt 0:00:03]} Rg1+ {[%emt 0:00:06]} 47. Kh2 {[%emt 0:00:03]} Rg2+ {[%emt 0:00:03]} 48. Kh3 {[%emt 0:00:03]} Rg3+ {[%emt 0:00:03]} 49. Kh4 {[%emt 0:00:03]} Rg4+ {[%emt 0:00:03]} 50. Qxg4 {[%emt 0:00:03]} Qxh7+ 51. Qh5 {[%emt 0:00:03]} Qxh5+ {[%emt 0:00:06]} 52. Kxh5 {[%emt 0:00:03]} Nf6+ 53. Kg6 {[%emt 0:00:03]} Nxe4 {[%emt 0:00:00]} 54. Bd5 {[%emt 0:00:00]} Nf6 {[%emt 0:00:09]} 1-0

[Event "Djerba Festival Blitz 2025"]
[Site "Djerba"]
[Date "2025.02.21"]
[Round "8.16"]
[White "El Kadi, Ismael"]
[Black "Maisuradze, Nino"]
[Result "0-1"]
[ECO "B22"]
[WhiteElo "1852"]
[BlackElo "2174"]
[PlyCount "51"]
[EventDate "2025.02.15"]
[EventType "swiss"]
[EventCountry "TUN"]
[TimeControl "180+3"]

1. e4 {[%emt 0:00:03]} c5 {[%emt 0:00:02]} 2. c3 {[%emt 0:00:03]} d5 {[%emt 0:00:04]} 3. exd5 {[%emt 0:00:03]} Qxd5 {[%emt 0:00:01]} 4. Nf3 {[%emt 0:00:03]} Nf6 {[%emt 0:00:01]} 5. d4 {[%emt 0:00:02]} e6 {[%emt 0:00:09]} 6. Na3 {[%emt 0:00:11]} Nc6 {[%emt 0:00:05]} 7. Nb5 {[%emt 0:00:05]} Qd8 {[%emt 0:00:06]} 8. Be2 {[%emt 0:00:11]} a6 {[%emt 0:00:04]} 9. Na3 {[%emt 0:00:03]} cxd4 {[%emt 0:00:08]} 10. cxd4 {[%emt 0:00:14]} b5 {[%emt 0:00:20]} 11. O-O {[%emt 0:00:08]} Bb7 {[%emt 0:00:05]} 12. Bg5 {[%emt 0:00:08]} Be7 {[%emt 0:00:03]} 13. Nc2 {[%emt 0:00:10]} O-O {[%emt 0:00:05]} 14. a3 {[%emt 0:00:03]} Rc8 {[%emt 0:00:03]} 15. Ne3 {[%emt 0:00:11]} Na5 {[%emt 0:00:10]} 16. Rc1 {[%emt 0:00:14]} Rxc1 {[%emt 0:00:24]} 17. Qxc1 {[%emt 0:00:03]} Nb3 {[%emt 0:00:08]} 18. Qc3 {[%emt 0:00:19]} Bxf3 {[%emt 0:00:03]} 19. Bxf3 {[%emt 0:00:03]} Nxd4 {[%emt 0:00:02]} 20. Bd1 {[%emt 0:00:19]} Ne4 {[%emt 0:01:01]} 21. Bxe7 {[%emt 0:00:08]} Nxc3 {[%emt 0:00:02]} 22. Bxd8 {[%emt 0:00:05]} Nce2+ {[%emt 0:00:02]} 23. Kh1 {[%emt 0:01:02]} Rxd8 {[%emt 0:00:01]} 24. Re1 {[%emt 0:00:06]} Nf4 {[%emt 0:00:08]} 25. Nc2 {[%emt 0:00:15]} Nd3 {[%emt 0:00:09]} 26. Rf1 {[%emt 0:00:09]} 0-1

[Event "Djerba Festival Blitz 2025"]
[Site "Djerba"]
[Date "2025.02.21"]
[Round "8.18"]
[White "Alonso Garuti, Luis Eugenio"]
[Black "Boulrens, Ala Eddine"]
[Result "0-1"]
[ECO "B03"]
[WhiteElo "1845"]
[BlackElo "2121"]
[PlyCount "46"]
[EventDate "2025.02.15"]
[EventType "swiss"]
[EventCountry "TUN"]
[TimeControl "180+3"]

1. e4 {[%emt 0:00:05]} d6 {[%emt 0:00:02]} 2. f4 {[%emt 0:00:04]} Nf6 {[%emt 0:03:07]} 3. e5 {[%emt 0:00:11]} dxe5 {[%emt 0:00:00]} 4. fxe5 {[%emt 0:00:03]} Nd5 {[%emt 0:00:00]} 5. d4 {[%emt 0:00:02]} e6 {[%emt 0:00:00]} 6. Nf3 {[%emt 0:00:03]} c5 {[%emt 0:00:00]} 7. c3 {[%emt 0:00:02]} cxd4 {[%emt 0:00:00]} 8. cxd4 {[%emt 0:00:04]} Nc6 {[%emt 0:00:00]} 9. Nc3 {[%emt 0:00:06]} Be7 {[%emt 0:00:00]} 10. Bd3 {[%emt 0:00:07]} Bd7 {[%emt 0:00:00]} 11. h4 {[%emt 0:00:10]} h6 {[%emt 0:00:00]} 12. Bd2 {[%emt 0:00:08]} Qb6 {[%emt 0:00:00]} 13. Nb5 {[%emt 0:00:24]} a6 {[%emt 0:00:00]} 14. Nc3 {[%emt 0:00:14]} Nxd4 {[%emt 0:00:00]} 15. Nxd5 {[%emt 0:00:13]} exd5 {[%emt 0:00:00]} 16. Be3 {[%emt 0:00:19]} Nxf3+ {[%emt 0:00:00]} 17. Qxf3 {[%emt 0:00:05]} d4 {[%emt 0:00:00]} 18. Bf4 {[%emt 0:00:10]} Be6 {[%emt 0:00:00]} 19. Be4 {[%emt 0:00:13]} Rb8 {[%emt 0:00:00]} 20. b3 {[%emt 0:00:13]} Bb4+ {[%emt 0:00:00]} 21. Kf1 {[%emt 0:00:11]} Bc3 {[%emt 0:00:00]} 22. Rc1 {[%emt 0:00:09]} Qa5 {[%emt 0:00:00]} 23. Bxb7 {[%emt 0:00:12]} Qb5+ {[%emt 0:00:00]} 0-1

[Event "Djerba Festival Blitz 2025"]
[Site "Djerba"]
[Date "2025.02.21"]
[Round "8.19"]
[White "Nassr, Lina"]
[Black "Ferahi, Tarik"]
[Result "0-1"]
[ECO "D05"]
[WhiteElo "1934"]
[BlackElo "1612"]
[PlyCount "59"]
[EventDate "2025.02.15"]
[EventType "swiss"]
[EventCountry "TUN"]
[TimeControl "180+3"]

1. d4 {[%emt 0:00:03]} Nf6 {[%emt 0:00:02]} 2. Nf3 {[%emt 0:00:02]} e6 {[%emt 0:00:02]} 3. e3 {[%emt 0:00:02]} d5 {[%emt 0:00:02]} 4. Bd3 {[%emt 0:00:02]} c5 {[%emt 0:00:02]} 5. b3 {[%emt 0:00:02]} Nc6 {[%emt 0:00:07]} 6. Bb2 {[%emt 0:00:03]} Be7 {[%emt 0:00:07]} 7. dxc5 {[%emt 0:00:03]} Bxc5 {[%emt 0:00:03]} 8. a3 {[%emt 0:00:03]} O-O {[%emt 0:00:05]} 9. Nbd2 {[%emt 0:00:02]} a6 {[%emt 0:00:03]} 10. b4 {[%emt 0:00:04]} Be7 {[%emt 0:00:05]} 11. c4 {[%emt 0:00:03]} dxc4 {[%emt 0:00:05]} 12. Bxc4 {[%emt 0:00:12]} b5 {[%emt 0:00:03]} 13. Be2 {[%emt 0:00:08]} Bb7 {[%emt 0:00:02]} 14. O-O {[%emt 0:00:03]} Rc8 {[%emt 0:00:02]} 15. Rc1 {[%emt 0:00:05]} h6 {[%emt 0:00:14]} 16. Qb3 {[%emt 0:00:14]} Qd5 {[%emt 0:00:19]} 17. Rfd1 {[%emt 0:00:25]} Qh5 {[%emt 0:00:06]} 18. Nf1 {[%emt 0:00:22]} g5 {[%emt 0:01:16]} 19. Ng3 {[%emt 0:00:10]} Qg6 {[%emt 0:00:05]} 20. Bd3 {[%emt 0:00:08]} Qg7 {[%emt 0:00:12]} 21. Nh5 {[%emt 0:00:07]} Qh8 {[%emt 0:00:10]} 22. Nd2 {[%emt 0:01:00]} Na7 {[%emt 0:00:35]} 23. Ne4 {[%emt 0:00:25]} Bxe4 {[%emt 0:00:05]} 24. Bxe4 {[%emt 0:00:02]} Rxc1 {[%emt 0:00:03]} 25. Rxc1 {[%emt 0:00:01]} Rd8 {[%emt 0:00:13]} 26. Qc3 {[%emt 0:00:09]} Rc8 {[%emt 0:00:06]} 27. Nxf6+ {[%emt 0:00:11]} Bxf6 {[%emt 0:00:04]} 28. Qxc8+ {[%emt 0:00:03]} Nxc8 {[%emt 0:00:04]} 29. Rxc8+ {[%emt 0:00:02]} Kg7 {[%emt 0:00:02]} 30. Rxh8 {[%emt 0:00:03]} 0-1

[Event "Djerba Festival Blitz 2025"]
[Site "Djerba"]
[Date "2025.02.21"]
[Round "8.20"]
[White "Skhiri Youssef"]
[Black "Amrane, Abdellah"]
[Result "0-1"]
[ECO "A15"]
[WhiteElo "1808"]
[BlackElo "2021"]
[PlyCount "67"]
[EventDate "2025.02.15"]
[EventType "swiss"]
[EventCountry "TUN"]
[TimeControl "180+3"]

1. c4 {[%emt 0:00:03]} e5 {[%emt 0:00:05]} 2. g3 {[%emt 0:00:03]} d6 {[%emt 0:00:02]} 3. Bg2 {[%emt 0:00:02]} g6 {[%emt 0:00:02]} 4. Nc3 {[%emt 0:00:02]} Bg7 {[%emt 0:00:02]} 5. Nf3 {[%emt 0:00:10]} Nf6 {[%emt 0:00:02]} 6. O-O {[%emt 0:00:03]} Nc6 {[%emt 0:00:01]} 7. d3 {[%emt 0:00:06]} h6 {[%emt 0:00:02]} 8. a3 {[%emt 0:00:03]} a5 {[%emt 0:00:02]} 9. b3 {[%emt 0:00:06]} O-O {[%emt 0:00:03]} 10. Bb2 {[%emt 0:00:02]} Be6 {[%emt 0:00:04]} 11. d4 {[%emt 0:00:11]} e4 {[%emt 0:00:17]} 12. Nh4 {[%emt 0:00:37]} Bd7 {[%emt 0:00:26]} 13. Nxe4 {[%emt 0:00:10]} Nxe4 {[%emt 0:00:02]} 14. Bxe4 {[%emt 0:00:02]} f5 {[%emt 0:00:04]} 15. Bg2 {[%emt 0:00:09]} Kh7 {[%emt 0:02:34]} 16. Nf3 {[%emt 0:00:05]} Qf6 {[%emt 0:00:00]} 17. Rb1 {[%emt 0:00:13]} Qf7 {[%emt 0:00:00]} 18. d5 {[%emt 0:00:06]} Ne5 {[%emt 0:00:00]} 19. Qd2 {[%emt 0:00:13]} Rae8 {[%emt 0:00:00]} 20. Nxe5 {[%emt 0:00:04]} dxe5 {[%emt 0:00:00]} 21. Rfd1 {[%emt 0:00:12]} f4 {[%emt 0:00:00]} 22. d6 {[%emt 0:00:04]} c6 {[%emt 0:00:00]} 23. gxf4 {[%emt 0:00:14]} exf4 {[%emt 0:00:00]} 24. Bxg7 {[%emt 0:00:06]} Qxg7 {[%emt 0:00:00]} 25. Kh1 {[%emt 0:00:16]} Re5 {[%emt 0:00:00]} 26. Rg1 {[%emt 0:00:13]} Qf6 {[%emt 0:00:00]} 27. Qd3 {[%emt 0:00:20]} Rh5 {[%emt 0:00:00]} 28. Be4 {[%emt 0:00:05]} Bf5 {[%emt 0:00:00]} 29. Bxf5 {[%emt 0:00:02]} Rxf5 {[%emt 0:00:00]} 30. d7 {[%emt 0:00:07]} f3 {[%emt 0:00:00]} 31. e4 {[%emt 0:00:23]} Rh5 {[%emt 0:00:00]} 32. Rg3 {[%emt 0:00:07]} Qh4 {[%emt 0:00:51]} 33. Kg1 {[%emt 0:00:03]} Qxh2+ {[%emt 0:00:03]} 34. Kf1 {[%emt 0:00:00]} 0-1